bitfinex/quotes_BTCUSD_20250225
["timestamp","ask_amount","ask_price","bid_price","bid_amount"]
[1740497718504,0.29792449,86402.0,86362.0,0.11374753]
[1740497718706,0.25449511,86412.0,86366.0,0.05778151]
[1740497718910,0.00121089,86411.0,86374.0,0.05778151]
[1740497719112,0.00121089,86417.0,86382.0,0.231529]
[1740497719319,0.00121089,86417.0,86389.0,0.05778151]
[1740497719540,0.0769,86445.0,86408.0,0.05778151]
[1740497719747,0.231392,86434.0,86413.0,0.05778151]
[1740497719956,0.3,86456.0,86414.0,0.11374753]
[1740497720157,0.00121089,86455.0,86416.0,0.05678151]
[1740497720330,0.231392,86434.0,86417.0,0.02653963]
[1740497720571,0.049,86459.0,86418.0,0.11374753]
[1740497720781,0.00121089,86458.0,86419.0,0.05678151]
[1740497720988,0.1008613,86430.0,86421.0,0.05678151]
[1740497721188,0.1008613,86430.0,86415.0,0.05678151]
[1740497721392,0.0998613,86430.0,86415.0,0.17052904]
[1740497721571,0.231385,86436.0,86415.0,0.11374753]
[1740497721704,0.001,86430.0,86421.0,0.05678151]
[1740497721906,0.001,86430.0,86429.0,0.23033351]
[1740497722109,0.001,86430.0,86418.0,0.007]
[1740497722515,0.173572,86419.0,86418.0,0.007]
[1740497722799,0.17357,86421.0,86418.0,0.007]
[1740497723025,0.23132,86460.0,86423.0,0.05678151]
[1740497723241,0.01624,86507.0,86423.0,0.05678151]
[1740497723242,0.3,86457.0,86423.0,0.05678151]
[1740497723375,0.173578,86416.0,86415.0,0.007]
[1740497723576,0.231405,86429.0,86415.0,0.007]
[1740497723757,0.25449511,86441.0,86408.0,0.00162005]
[1740497723977,0.25449511,86454.0,86415.0,0.05678151]
[1740497724220,0.3,86452.0,86421.0,0.05678151]
[1740497724424,0.3,86452.0,86418.0,0.007]
[1740497724425,0.25449511,86475.0,86433.0,0.05678151]
[1740497724623,0.25449511,86475.0,86410.0,0.09256527]
[1740497724624,0.04059995,86463.0,86416.0,0.05678151]
[1740497724895,0.231412,86426.0,86414.0,0.05678151]
[1740497725127,0.173573,86419.0,86414.0,0.01563468]
[1740497725485,0.3,86446.0,86408.0,0.007]
[1740497725690,0.04190482,86443.0,86409.0,0.11374753]
[1740497725868,0.30121089,86442.0,86409.0,0.11374753]
[1740497726068,0.04230643,86441.0,86410.0,0.04251946]
[1740497726307,0.4642938,86469.0,86424.0,0.05678151]
[1740497726308,0.30212364,86460.0,86424.0,0.05678151]
[1740497726511,0.173542,86434.0,86433.0,0.001]
[1740497726826,0.0816,86476.0,86441.0,0.05678151]
[1740497726921,0.30212364,86480.0,86442.0,0.05678151]
[1740497727173,0.00121089,86476.0,86444.0,0.05678151]
[1740497727392,0.30212364,86480.0,86429.0,0.09256527]
[1740497727393,0.04150981,86468.0,86441.0,0.05678151]
[1740497727623,0.27159992,86468.0,86444.0,0.05678151]
[1740497727849,0.00121089,86467.0,86436.0,0.05678151]
[1740497728097,0.0405665,86466.0,86442.0,0.006]
[1740497728290,0.173524,86443.0,86442.0,0.006]
[1740497728522,0.23131,86464.0,86442.0,0.006]
[1740497728523,0.30212364,86463.0,86442.0,0.006]
[1740497728742,0.346899,86481.0,86442.0,0.006]
[1740497728743,0.173524,86443.0,86442.0,0.006]
[1740497728967,0.21469267,86443.0,86442.0,0.006]
[1740497729470,0.173524,86443.0,86442.0,0.006]
[1740497729667,0.04116867,86443.0,86409.0,0.04856527]
[1740497729861,0.1,86472.0,86394.0,0.33795873]
[1740497729862,0.04348385,86442.0,86407.0,0.05678151]
[1740497730099,0.173626,86393.0,86391.0,0.09256527]
[1740497730297,0.3,86437.0,86392.0,0.12300406]
[1740497730523,0.3,86435.0,86401.0,0.05678151]
[1740497730852,0.04401942,86434.0,86403.0,0.0433528]
[1740497731058,0.04401942,86434.0,86409.0,0.002]
[1740497731220,0.231393,86434.0,86413.0,0.0433528]
[1740497731428,0.0424403,86433.0,86413.0,0.0433528]
[1740497731632,0.173607,86402.0,86401.0,0.0433528]
[1740497731841,0.173607,86402.0,86401.0,0.006]
[1740497732079,0.00121089,86430.0,86404.0,0.0433528]
[1740497732220,0.30212364,86445.0,86429.0,0.0433528]
[1740497732420,0.25449511,86462.0,86426.0,0.0433528]
[1740497732421,0.30212364,86457.0,86426.0,0.0433528]
[1740497732605,0.173548,86431.0,86427.0,0.01359181]
[1740497732810,0.173556,86427.0,86426.0,0.0433528]
[1740497733026,0.04123559,86456.0,86412.0,0.10864527]
[1740497733027,0.231435,86418.0,86412.0,0.10864527]
[1740497733246,0.173568,86421.0,86420.0,0.0433528]
[1740497733455,0.173582,86414.0,86413.0,0.007]
[1740497733978,0.55661875,86432.0,86397.0,0.0433528]
[1740497734174,0.473584,86413.0,86412.0,0.005]
[1740497734376,0.3,86410.0,86383.0,0.0008479]
[1740497734611,0.04424835,86405.0,86387.0,0.0433528]
[1740497734791,0.04428184,86404.0,86388.0,0.0433528]
[1740497735005,0.173643,86384.0,86383.0,0.0008479]
[1740497735337,0.30212364,86403.0,86388.0,0.0433528]
[1740497735559,0.001,86414.0,86398.0,0.0433528]
[1740497735767,0.173623,86394.0,86393.0,0.0433528]
[1740497735972,0.04361206,86413.0,86383.0,0.0008479]
[1740497735973,0.173643,86384.0,86383.0,0.0008479]
[1740497737349,0.0016982,86405.0,86383.0,0.0008479]
[1740497737712,0.0016982,86405.0,86392.0,0.0423528]
[1740497737916,0.04441581,86404.0,86384.0,0.0423528]
[1740497738194,0.3,86427.0,86386.0,0.0423528]
[1740497738352,0.3,86427.0,86383.0,0.0008479]
[1740497738353,0.3,86425.0,86383.0,0.0008479]
[1740497738552,0.23147,86405.0,86383.0,0.0008479]
[1740497738776,0.3,86415.0,86383.0,0.0008479]
[1740497738983,0.173643,86384.0,86383.0,0.0008479]
[1740497739403,0.001,86384.0,86383.0,0.0078479]
[1740497739877,0.173637,86387.0,86383.0,0.0008479]
[1740497740084,0.3,86414.0,86383.0,0.0078479]
[1740497740085,0.001,86384.0,86383.0,0.0078479]
[1740497740513,0.001,86384.0,86383.0,0.12159543]
[1740497740716,0.0998613,86417.0,86384.0,0.0423528]
[1740497740938,0.173624,86394.0,86384.0,0.0413528]
[1740497741133,0.231449,86412.0,86389.0,0.0413528]
[1740497741336,0.173631,86390.0,86389.0,0.0413528]
[1740497741537,0.3,86414.0,86386.0,0.0413528]
[1740497741715,0.25928964,86415.0,86394.0,0.0413528]
[1740497741945,0.25928964,86415.0,86383.0,0.007]
[1740497742179,0.2,86409.0,86339.0,0.09256527]
[1740497742402,0.51378475,86408.0,86350.0,0.09256527]
[1740497742564,0.51378475,86408.0,86351.0,0.13437881]
[1740497742565,0.173707,86352.0,86351.0,0.13437881]
[1740497742898,0.173735,86338.0,86337.0,0.0008491]
[1740497745150,0.473735,86338.0,86337.0,0.0008491]
[1740497745556,0.173755,86328.0,86327.0,8.5e-07]
[1740497746967,0.77358714,86328.0,86327.0,8.5e-07]
[1740497747361,0.73304464,86328.0,86327.0,8.5e-07]
[1740497747796,0.25928964,86328.0,86275.0,0.0891487]
[1740497747996,0.25928964,86328.0,86292.0,0.09256527]
[1740497748448,0.3,86325.0,86292.0,0.09256527]
[1740497748617,0.25928964,86324.0,86293.0,0.11374753]
[1740497748816,0.173806,86303.0,86294.0,0.02063128]
[1740497749021,0.173808,86302.0,86301.0,0.09256527]
[1740497749414,0.25928964,86324.0,86301.0,0.2063128]
[1740497749640,0.25928964,86324.0,86302.0,0.11374753]
[1740497749849,0.25928964,86324.0,86301.0,0.09256527]
[1740497750066,0.25928964,86324.0,86302.0,0.12300406]
[1740497750300,0.173806,86303.0,86302.0,0.00925653]
[1740497750462,0.173806,86303.0,86292.0,0.09256527]
[1740497750463,0.55449511,86333.0,86292.0,0.09256527]
[1740497750669,0.3,86331.0,86278.0,0.281806]
[1740497750869,0.3,86338.0,86290.0,0.09256527]
[1740497751065,0.25449511,86339.0,86299.0,0.09256527]
[1740497751265,0.02544951,86338.0,86299.0,0.09256527]
[1740497751527,0.25449511,86339.0,86300.0,0.11536956]
[1740497751740,0.173775,86319.0,86308.0,0.09256527]
[1740497751957,0.35918964,86372.0,86308.0,0.09256527]
[1740497751958,0.33158792,86357.0,86309.0,0.11374753]
[1740497752171,0.23172662,86356.0,86309.0,0.11374753]
[1740497752429,0.23172662,86356.0,86310.0,0.00162166]
[1740497752634,0.03315879,86355.0,86311.0,0.00162189]
[1740497752851,0.231717,86312.0,86284.0,0.231791]
[1740497753056,0.3,86351.0,86291.0,0.00162196]
[1740497753262,0.3,86349.0,86279.0,0.048]
[1740497753495,0.347435,86347.0,86299.0,0.09256527]
[1740497753720,0.231696,86320.0,86309.0,0.09256527]
[1740497753897,0.3,86347.0,86310.0,0.11374753]
[1740497754130,0.347411,86353.0,86310.0,0.11374753]
[1740497754338,0.347411,86353.0,86290.0,0.09256527]
[1740497754339,0.01454085,86354.0,86290.0,0.09256527]
[1740497754572,0.01454085,86352.0,86291.0,0.0753]
[1740497754792,0.1998613,86357.0,86292.0,0.11374753]
[1740497754793,0.01454085,86350.0,86292.0,0.11374753]
[1740497755001,0.31454085,86348.0,86292.0,0.11374753]
[1740497755203,0.31454085,86346.0,86290.0,0.09256527]
[1740497755410,0.3,86326.0,86291.0,0.11374753]
[1740497755614,0.23172662,86344.0,86291.0,0.11374753]
[1740497755788,0.49091626,86343.0,86291.0,0.11374753]
[1740497756002,0.34909163,86342.0,86291.0,0.11374753]
[1740497756136,0.04909163,86342.0,86291.0,0.11374753]
[1740497756340,0.3,86331.0,86291.0,0.11374753]
[1740497756546,0.3,86329.0,86281.0,0.09262327]
[1740497756750,0.08317266,86328.0,86282.0,0.14175242]
[1740497756945,0.3,86326.0,86282.0,0.14175242]
[1740497757151,0.25918964,86341.0,86292.0,0.09256527]
[1740497757152,0.3,86324.0,86292.0,0.09256527]
[1740497757467,0.3,86324.0,86293.0,0.11374753]
[1740497757645,0.231703,86318.0,86293.0,0.11374753]
[1740497757846,0.173768,86322.0,86307.0,0.173796]
[1740497758143,0.49091626,86366.0,86311.0,0.09256527]
[1740497758365,0.49091626,86366.0,86302.0,0.09256527]
[1740497758366,0.23172662,86365.0,86302.0,0.09256527]
[1740497758608,0.25918964,86366.0,86279.0,0.06212564]
[1740497758609,0.231743,86303.0,86279.0,0.048]
[1740497758809,0.173791,86311.0,86295.0,0.12506719]
[1740497758964,0.24530928,86340.0,86306.0,0.173799]
[1740497758965,0.173769,86322.0,86306.0,0.173799]
[1740497759145,0.173806,86303.0,86301.0,0.09256527]
[1740497759507,0.3,86336.0,86295.0,0.01131966]
[1740497759828,0.3,86341.0,86277.0,0.0753]
[1740497759829,0.173826,86293.0,86277.0,0.0753]
[1740497760077,0.3,86322.0,86277.0,0.0753]
[1740497760271,0.23172662,86334.0,86290.0,0.09256527]
[1740497760631,0.173827,86293.0,86290.0,0.09418751]
[1740497760807,0.173827,86293.0,86290.0,0.09256527]
[1740497761201,0.231711,86315.0,86290.0,0.13437881]
[1740497761428,0.173848,86282.0,86281.0,5.8e-05]
[1740497761747,0.173846,86284.0,86281.0,5.8e-05]
[1740497761944,0.3,86303.0,86281.0,5.8e-05]
[1740497762158,0.173848,86282.0,86281.0,5.8e-05]
[1740497763192,0.19092108,86282.0,86281.0,5.8e-05]
[1740497764097,0.173854,86279.0,86278.0,0.0497697]
[1740497764277,0.19112857,86279.0,86278.0,7e-07]
[1740497764473,0.19112857,86279.0,86233.0,0.0755]
[1740497764474,0.10592633,86279.0,86233.0,0.0755]
[1740497764672,0.173911,86251.0,86233.0,0.0755]
[1740497764941,0.1930669,86251.0,86250.0,1e-07]
[1740497765150,0.00888077,86264.0,86250.0,1e-07]
[1740497765151,0.25918964,86257.0,86250.0,1e-07]
[1740497765352,0.173911,86251.0,86250.0,1e-07]
[1740497765556,0.49091626,86288.0,86250.0,0.11374753]
[1740497765769,0.19256527,86318.0,86229.0,0.37100194]
[1740497765770,0.01794633,86286.0,86252.0,0.0797]
[1740497765969,0.01463429,86286.0,86277.0,0.173857]
[1740497766167,0.173798,86307.0,86278.0,0.11537002]
[1740497766371,0.2,86341.0,86278.0,0.11537002]
[1740497766372,0.25918964,86335.0,86278.0,0.11537002]
[1740497766572,0.2,86341.0,86301.0,0.37089194]
[1740497766771,0.2,86341.0,86302.0,0.04336102]
[1740497766971,0.01442133,86340.0,86303.0,0.00162181]
[1740497767211,0.2146921,86341.0,86304.0,0.11374753]
[1740497767394,0.2146921,86341.0,86302.0,0.41263113]
[1740497767395,0.0146921,86341.0,86314.0,0.0786]
[1740497767546,0.25918964,86390.0,86350.0,0.173711]
[1740497767749,0.231476,86402.0,86350.0,0.1910821]
[1740497768015,0.11434238,86351.0,86350.0,0.2662821]
[1740497768379,0.11434238,86351.0,86350.0,0.26287973]
[1740497768795,0.23172662,86420.0,86350.0,0.23689948]
[1740497768994,0.23172662,86427.0,86371.0,0.37089194]
[1740497769196,0.23172662,86426.0,86372.0,0.13329204]
[1740497769398,0.01621101,86415.0,86372.0,0.1316717]
[1740497769739,0.01621101,86415.0,86372.0,0.13329233]
[1740497770040,0.01621101,86415.0,86392.0,0.231502]
[1740497770230,0.01621101,86415.0,86393.0,0.0016201]
[1740497770526,0.02052105,86407.0,86406.0,0.13520801]
[1740497770765,0.02052105,86407.0,86394.0,0.05311394]
[1740497770766,0.02052105,86407.0,86400.0,0.173609]
[1740497770995,0.02052105,86407.0,86401.0,0.11374753]
[1740497771248,0.02052105,86407.0,86405.0,0.1736]
[1740497771475,0.02052105,86407.0,86406.0,0.01454085]
[1740497771672,0.01621101,86415.0,86414.0,0.173582]
[1740497772050,0.01602789,86415.0,86406.0,0.0173711]
[1740497772280,0.01602789,86415.0,86402.0,0.21514828]
[1740497772281,0.01602789,86415.0,86407.0,0.11374753]
[1740497772491,0.01602789,86415.0,86402.0,0.09258884]
[1740497772492,0.00151628,86415.0,86383.0,0.09258884]
[1740497772663,0.00151628,86415.0,86384.0,0.11374753]
[1740497773104,0.231473,86403.0,86384.0,0.11374753]
[1740497773301,0.00151628,86415.0,86384.0,0.11374753]
[1740497773515,0.173618,86397.0,86385.0,0.01137475]
[1740497773723,0.00151628,86415.0,86386.0,0.11374753]
[1740497773957,0.02554317,86414.0,86386.0,0.09729596]
[1740497774162,0.00151628,86415.0,86387.0,0.00162036]
[1740497774437,0.00151628,86415.0,86390.0,0.11374753]
[1740497774670,0.00151628,86415.0,86389.0,0.37034465]
[1740497774671,0.00151628,86415.0,86413.0,0.173583]
[1740497775421,0.00151628,86415.0,86408.0,0.173593]
[1740497775636,0.0016994,86436.0,86415.0,0.01454085]
[1740497775842,0.0016994,86436.0,86414.0,0.1459482]
[1740497775843,0.0016994,86436.0,86428.0,0.54389865]
[1740497776056,0.0016994,86436.0,86429.0,0.1]
[1740497776282,0.0016994,86436.0,86428.0,0.51141793]
[1740497776283,0.23119,86509.0,86468.0,0.173474]
[1740497776504,0.2444777,86495.0,86468.0,0.173474]
[1740497776696,0.0132487,86495.0,86468.0,0.28722153]
[1740497776950,0.0132487,86495.0,86494.0,0.173422]
[1740497777194,0.0132487,86495.0,86494.0,0.28716953]
[1740497777429,0.0132487,86495.0,86494.0,0.17483099]
[1740497777653,0.0132487,86495.0,86494.0,0.11374753]
[1740497777877,0.0132487,86495.0,86494.0,0.48409218]
[1740497778051,0.0016982,86512.0,86499.0,0.173412]
[1740497778255,0.1347,86500.0,86499.0,0.30170038]
[1740497778477,0.1347,86500.0,86499.0,0.30319953]
[1740497778799,0.1347,86500.0,86499.0,0.31774038]
[1740497779061,0.1347,86500.0,86499.0,0.11374753]
[1740497779442,0.0847,86500.0,86499.0,0.12828838]
[1740497779844,0.0016952,86518.0,86506.0,0.231195]
[1740497780067,0.00019928,86552.0,86551.0,0.173308]
[1740497780383,0.00019928,86552.0,86551.0,0.28705553]
[1740497780516,0.00019928,86552.0,86551.0,0.11374753]
[1740497780723,0.00019928,86552.0,86525.0,0.231147]
[1740497780926,0.00019928,86552.0,86548.0,0.231083]
[1740497781134,0.00019928,86552.0,86549.0,0.14823058]
[1740497781342,0.00019928,86552.0,86549.0,0.11374753]
[1740497781805,0.01551377,86551.0,86503.0,0.37034465]
[1740497781978,0.173357,86527.0,86516.0,0.11374753]
[1740497782182,0.09191377,86551.0,86516.0,0.11374753]
[1740497782381,0.09191377,86551.0,86517.0,0.01299253]
[1740497782685,0.09191377,86551.0,86517.0,0.00161778]
[1740497782856,0.01661529,86548.0,86495.0,0.37034465]
[1740497783060,0.231129,86532.0,86517.0,0.11374753]
[1740497783200,0.3,86546.0,86518.0,0.11374753]
[1740497783407,0.0764,86551.0,86520.0,0.23116]
[1740497783604,0.07629206,86551.0,86522.0,0.231155]
[1740497784020,0.07629206,86551.0,86521.0,0.15001788]
[1740497784021,0.30737006,86551.0,86528.0,0.173353]
[1740497784172,0.0453,86555.0,86529.0,0.11374753]
[1740497784581,0.01608116,86554.0,86521.0,0.03465255]
[1740497784789,0.01608116,86554.0,86522.0,0.11374753]
[1740497784948,0.0453,86555.0,86505.0,0.38638465]
[1740497784949,0.0453,86555.0,86527.0,0.11374753]
[1740497785152,0.231089,86547.0,86527.0,0.11374753]
[1740497785389,0.173318,86546.0,86528.0,0.173354]
[1740497785621,0.0453,86555.0,86493.0,0.00865332]
[1740497785825,0.173324,86543.0,86516.0,0.11374753]
[1740497786070,0.276367,86555.0,86519.0,0.11374753]
[1740497786305,0.101698,86597.0,86546.0,0.23109]
[1740497786306,0.231024,86571.0,86546.0,0.23109]
[1740497786551,0.231035,86567.0,86535.0,0.11374753]
[1740497786779,0.231035,86567.0,86537.0,0.231115]
[1740497787002,0.23104,86565.0,86538.0,0.16513556]
[1740497787195,0.231059,86558.0,86538.0,0.16351828]
[1740497787400,0.23105,86562.0,86539.0,0.00161742]
[1740497787555,0.173277,86567.0,86540.0,0.11374753]
[1740497787767,0.0008479,86551.0,86543.0,0.231098]
[1740497787967,0.0008479,86551.0,86549.0,0.173311]
[1740497788175,0.0008479,86551.0,86550.0,0.10098078]
[1740497788738,0.0008479,86551.0,86550.0,0.09936357]
[1740497789230,0.0008479,86551.0,86550.0,0.27429057]
[1740497789406,0.0008479,86551.0,86550.0,0.27267357]
[1740497789609,0.0008479,86551.0,86550.0,0.28940203]
[1740497789809,0.0016946,86576.0,86575.0,0.17326]
[1740497790014,0.0016946,86576.0,86575.0,0.11374753]
[1740497790260,0.01147267,86600.0,86575.0,0.11374753]
[1740497790558,0.2,86647.0,86615.0,0.47318]
[1740497790805,0.0016934,86660.0,86626.0,0.573158]
[1740497791053,0.0016934,86660.0,86626.0,0.18168127]
[1740497791306,0.000696,86627.0,86626.0,0.18792268]
[1740497791554,0.0016934,86660.0,86637.0,0.173136]
[1740497791555,1e-08,86639.0,86637.0,0.173136]
[1740497791796,1e-08,86639.0,86638.0,0.10161512]
[1740497792038,0.0016934,86660.0,86652.0,0.230808]
[1740497792271,0.01979209,86660.0,86659.0,0.18190684]
[1740497792763,0.01979209,86660.0,86659.0,0.173092]
[1740497792998,0.01979209,86660.0,86658.0,0.00867123]
[1740497792999,0.01979209,86660.0,86658.0,0.173092]
[1740497793242,0.01979209,86660.0,86633.0,0.1]
[1740497793243,0.01924209,86660.0,86631.0,0.26588]
[1740497793490,0.01924209,86660.0,86658.0,0.173092]
[1740497794035,0.0008479,86714.0,86695.0,0.17302]
[1740497794266,0.0008479,86714.0,86685.0,0.06147029]
[1740497794509,0.0008479,86714.0,86687.0,0.173036]
[1740497794756,0.0008479,86714.0,86709.0,0.17299]
[1740497795022,0.0008479,86714.0,86686.0,0.01596]
[1740497795261,0.0008479,86714.0,86687.0,0.00161427]
[1740497795497,0.0008479,86714.0,86688.0,0.00161444]
[1740497795754,0.0008479,86714.0,86704.0,0.11374753]
[1740497795988,0.0008479,86714.0,86712.0,0.172985]
[1740497796468,0.0008479,86714.0,86713.0,0.00161412]
[1740497797207,0.0008479,86714.0,86713.0,0.11374753]
[1740497797444,0.05526604,86700.0,86664.0,0.25]
[1740497797675,0.0471,86710.0,86682.0,0.11374753]
[1740497797898,0.0471,86710.0,86683.0,0.00161441]
[1740497798094,0.0471,86710.0,86682.0,0.11374753]
[1740497798384,0.05526604,86703.0,86682.0,0.11374753]
[1740497798593,0.05526604,86691.0,86684.0,0.034678]
[1740497798798,0.310737,86717.0,86665.0,0.016]
[1740497798799,0.05526604,86744.0,86690.0,0.06417179]
[1740497798946,0.03582821,86752.0,86702.0,0.00873246]
[1740497799171,0.03582821,86746.0,86703.0,0.00161375]
[1740497799373,0.1,86773.0,86691.0,0.26628]
[1740497799574,0.1,86771.0,86692.0,0.026628]
[1740497799774,0.1,86761.0,86693.0,0.00161423]
[1740497799980,0.3,86748.0,86706.0,0.230663]
[1740497800182,0.0008479,86750.0,86692.0,0.026628]
[1740497800352,0.01938766,86750.0,86709.0,0.11374753]
[1740497800571,0.01797469,86749.0,86710.0,0.01298879]
[1740497800778,0.0008479,86750.0,86711.0,0.11536167]
[1740497800779,0.172975,86718.0,86711.0,0.11536167]
[1740497801003,0.3,86744.0,86711.0,0.11374753]
[1740497801223,0.01810764,86743.0,86693.0,0.050948]
[1740497801445,0.172986,86713.0,86694.0,0.11536189]
[1740497801780,0.01810764,86743.0,86694.0,0.11536189]
[1740497801781,0.3,86742.0,86695.0,0.01500299]
[1740497801980,0.3,86739.0,86696.0,0.11374753]
[1740497802107,0.01454085,86736.0,86697.0,0.00161449]
[1740497802308,0.173011,86700.0,86698.0,0.11374753]
[1740497802510,0.0454,86729.0,86701.0,0.230676]
[1740497802738,0.230628,86720.0,86702.0,0.14969018]
[1740497802994,0.01920467,86719.0,86698.0,0.034672]
[1740497803125,0.01937093,86718.0,86698.0,0.034672]
[1740497803322,0.37034465,86728.0,86699.0,0.11374753]
[1740497803527,0.11139611,86756.0,86699.0,0.11374753]
[1740497803528,0.01139611,86756.0,86717.0,0.230633]
[1740497803749,0.01139611,86756.0,86718.0,0.01793394]
[1740497803951,0.01139611,86756.0,86743.0,0.230564]
[1740497804150,0.2,86777.0,86749.0,0.172912]
[1740497804353,0.0477,86781.0,86749.0,0.17452541]
[1740497804552,0.25,86800.0,86791.0,0.230438]
[1740497804755,0.25,86800.0,86771.0,0.0164]
[1740497805019,0.25,86800.0,86772.0,0.00161279]
[1740497805230,0.25,86800.0,86785.0,0.11374753]
[1740497805773,0.25,86800.0,86791.0,0.172827]
[1740497805983,0.25,86800.0,86792.0,0.14256627]
[1740497806180,0.25,86800.0,86793.0,0.37034465]
[1740497806404,0.25,86800.0,86799.0,0.11374753]
[1740497806919,0.24713965,86800.0,86799.0,0.11374753]
[1740497807300,0.17529151,86800.0,86799.0,0.65690518]
[1740497807705,0.15919242,86800.0,86799.0,0.65690518]
[1740497808088,0.06097302,86800.0,86799.0,0.65690518]
[1740497808304,0.06052302,86800.0,86799.0,0.28656053]
[1740497808518,0.06052302,86800.0,86799.0,0.11374753]
[1740497808975,0.23333402,86800.0,86799.0,0.11374753]
[1740497809198,0.23333402,86800.0,86773.0,0.25852473]
[1740497809199,0.06052302,86800.0,86773.0,0.25852473]
[1740497809429,0.172862,86774.0,86773.0,0.00852473]
[1740497809585,0.172926,86742.0,86733.0,0.25]
[1740497809761,0.172941,86735.0,86733.0,0.25]
[1740497809967,0.3,86766.0,86733.0,0.25]
[1740497810214,0.3,86766.0,86739.0,0.172931]
[1740497810423,0.1251,86769.0,86767.0,0.172876]
[1740497810632,0.1285,86792.0,86764.0,0.00161335]
[1740497810843,0.0472,86792.0,86764.0,0.00161335]
[1740497811039,0.0472,86792.0,86761.0,0.230516]
[1740497811254,0.172843,86784.0,86745.0,0.230559]
[1740497811477,0.3,86790.0,86764.0,0.11374753]
[1740497811733,0.0472,86792.0,86738.0,0.62034465]
[1740497811734,0.01481902,86789.0,86746.0,0.11374753]
[1740497811983,0.0472,86792.0,86767.0,0.11374753]
[1740497812255,0.01152149,86799.0,86767.0,0.11374753]
[1740497812256,0.23042,86798.0,86767.0,0.11374753]
[1740497812476,0.172842,86785.0,86770.0,0.17287]
[1740497812708,0.3,86809.0,86767.0,0.11374753]
[1740497812932,0.3,86809.0,86739.0,0.25506442]
[1740497812933,0.01122585,86799.0,86780.0,0.11374753]
[1740497813149,0.04667,86814.0,86798.0,0.11374753]
[1740497813378,7e-05,86814.0,86799.0,0.00161247]
[1740497813603,7e-05,86814.0,86798.0,0.2980405]
[1740497813807,7e-05,86814.0,86813.0,0.172785]
[1740497814564,7e-05,86814.0,86813.0,0.28653253]
[1740497814785,7e-05,86814.0,86813.0,0.32115553]
[1740497816527,0.0048929,86872.0,86815.0,0.2]
[1740497816739,0.0048929,86872.0,86847.0,0.11374753]
[1740497816953,0.0048929,86872.0,86838.0,0.37034465]
[1740497816954,0.0048929,86872.0,86857.0,0.11374753]
[1740497817428,0.0048929,86872.0,86858.0,0.00161152]
[1740497817628,0.0008459,86901.0,86858.0,0.00161152]
[1740497817629,0.0008459,86901.0,86863.0,0.11374753]
[1740497817879,0.0008459,86901.0,86868.0,0.11374753]
[1740497818154,0.230177,86890.0,86874.0,0.11374753]
[1740497818400,0.0008459,86901.0,86885.0,0.172641]
[1740497818605,0.0008459,86901.0,86899.0,0.172613]
[1740497818816,0.0008459,86901.0,86900.0,0.44811936]
[1740497819034,0.0008459,86901.0,86900.0,0.44650874]
[1740497819255,0.1,86976.0,86900.0,0.44650874]
[1740497819508,0.01132056,86953.0,86910.0,0.11374753]
[1740497819662,0.12286206,86952.0,86911.0,0.00161049]
[1740497819871,0.472587,86913.0,86911.0,0.11374753]
[1740497820069,0.10012025,86951.0,86885.0,0.25]
[1740497820281,0.3,86949.0,86885.0,0.25]
[1740497820455,0.01147573,86953.0,86893.0,0.45274465]
[1740497820682,0.0153519,86958.0,86893.0,0.45274465]
[1740497820890,0.0153519,86958.0,86920.0,0.11374753]
[1740497821095,0.0153519,86958.0,86928.0,0.11374753]
[1740497821301,0.172554,86929.0,86928.0,0.11374753]
[1740497821647,0.02708165,86958.0,86928.0,0.11374753]
[1740497821986,0.0153519,86958.0,86956.0,0.172499]
[1740497822138,0.0153519,86958.0,86957.0,0.00160965]
[1740497822339,0.0153519,86958.0,86942.0,0.37034465]
[1740497822545,0.0153519,86958.0,86957.0,0.11374753]
[1740497822929,0.0153519,86958.0,86957.0,0.48570172]
[1740497823140,0.0008459,86974.0,86973.0,0.172467]
[1740497823335,0.0004459,86974.0,86973.0,0.27841453]
[1740497823733,0.04140674,87024.0,86978.0,0.1]
[1740497823936,0.0803,87051.0,87008.0,0.11374753]
[1740497824135,0.0612159,87051.0,87010.0,0.11374753]
[1740497824338,0.0612159,87051.0,87011.0,0.11535598]
[1740497824339,0.17239,87012.0,87011.0,0.11535598]
[1740497824601,0.07296979,87051.0,87011.0,0.11374753]
[1740497824739,0.07296979,87051.0,87011.0,0.20971882]
[1740497824740,0.09354455,87050.0,87011.0,0.20971882]
[1740497824942,0.09354455,87050.0,87012.0,0.11374753]
[1740497824943,0.229755,87049.0,87012.0,0.11374753]
[1740497825294,0.09357756,87048.0,87023.0,0.00711662]
[1740497825493,0.22976,87047.0,87023.0,0.00711662]
[1740497825706,0.172365,87025.0,87024.0,0.11535618]
[1740497825861,0.07296979,87051.0,87024.0,0.11374753]
[1740497826064,0.17236,87027.0,87025.0,0.11374753]
[1740497826317,0.01175389,87051.0,87025.0,0.11354753]
[1740497826522,0.01175389,87051.0,87036.0,0.37034465]
[1740497826729,0.0153519,87060.0,87040.0,0.11374753]
[1740497826938,0.0153519,87060.0,87049.0,0.11374753]
[1740497827214,0.172312,87051.0,87050.0,0.00160779]
[1740497827360,0.172312,87051.0,87049.0,0.11374753]
[1740497827557,0.3,87050.0,86996.0,0.1]
[1740497827761,0.172357,87029.0,87027.0,0.11374753]
[1740497828326,0.3153519,87060.0,86982.0,0.37034465]
[1740497828521,0.3153519,87060.0,87001.0,0.37034465]
[1740497828522,0.11374753,87053.0,87001.0,0.37034465]
[1740497828718,0.11374753,87053.0,87010.0,0.37034465]
[1740497828858,0.0153519,87060.0,87011.0,0.11535596]
[1740497829057,0.0135262,87060.0,87011.0,0.11535596]
[1740497829267,0.0135262,87060.0,87026.0,0.11374753]
[1740497829703,0.0135262,87060.0,87027.0,0.00160828]
[1740497829900,0.0135262,87060.0,87026.0,0.11374753]
[1740497830149,0.0135262,87060.0,87029.0,0.11374753]
[1740497830367,0.229729,87059.0,87035.0,0.11374753]
[1740497830514,0.0135262,87060.0,87036.0,0.00160809]
[1740497830714,0.0135262,87060.0,87037.0,0.11374753]
[1740497830920,0.0135262,87060.0,87038.0,0.00160799]
[1740497831141,0.229729,87059.0,87039.0,0.11535547]
[1740497831390,0.0135262,87060.0,87039.0,0.11535547]
[1740497831539,0.0135262,87060.0,87048.0,0.11374753]
[1740497831743,0.0135262,87060.0,87050.0,0.11374753]
[1740497831943,0.0135262,87060.0,87058.0,0.172298]
[1740497832151,0.0135262,87060.0,87059.0,0.00160766]
[1740497832550,0.0135262,87060.0,87058.0,0.172298]